Cogmind - Beta 14 @@@ ROGUE MODE // 2025.01.03 @ 13:33:46 Player: FenRhew Result: Destroyed by X-67 Chaingunner with Heavy Machine Gun Performance ------------- Evolutions (3) 1500 Regions Visited (6) 1200 Robots Destroyed (126) 630 Value Destroyed (3903) 3903 Prototype IDs (25) 500 Alien Tech Used (0) 0 Bonus (579) 579 TOTAL SCORE: 8312 Bonus ------- High Alert Combat Kills 222 Follower Combat Kills 174 Aligned with FarCom 300 Friendly Fire -117 Cogmind --------- Core Integrity 0/700 Matter 86/300 Energy 16/100 System Corruption 33% Temperature Cool (0) Movement Walking (180) Ox1 Location -7/Factory Parts ------- > --- POWER (2) -------- (None) > --- PROPULSION (3) --- VSS Leg > --- UTILITY (5) ------ Large Storage Unit Improved Shield Generator > --- WEAPON (3) ------- (None) > --- INVENTORY (15) --- Gravmag System Improved Heat Sink Huge Storage Unit Compact Matter Pod (150) Improved Terrain Scanner Transmission Jammer Improved Shield Generator Heavy EM Pulse Gun Heavy Ion Cannon Heavy Ion Cannon Peak State ------------ > --- POWER ------------ Light Deuterium Engine Micro Nuclear Core > --- PROPULSION ------- Medium Treads Medium Treads Carbon-fiber Leg > --- UTILITY ---------- Improved Cooling System Large Storage Unit 0b10 Alert Chip Advanced Targeting Computer Hacking Suite > --- WEAPON ----------- Plasma Cannon Advanced Assault Cannon Gauss Cannon > --- INVENTORY -------- Deuterium Engine Carbon-fiber Leg Carbon-fiber Leg VSS Leg Compact Matter Pod Hardened Medium Armor Plating Hardened Heavy Armor Plating Component Analysis Suite Gauss Rifle Flak Gun Chainsword Great Axe Great Axe [Rating: 52] Favorites ----------- Power Micro Nuclear Core Engine Light Ion Engine Power Core Micro Nuclear Core Propulsion Light Treads Treads Light Treads Leg Carbon-fiber Leg Utility Medium Storage Unit Device Structural Scanner Storage Medium Storage Unit Processor 0b10 Alert Chip Hackware Hacking Suite Protection Hardened Heavy Armor Plating Weapon Rocket Launcher Energy Gun Heavy Laser Energy Cannon Plasma Cannon Ballistic Gun High-powered Shotgun Ballistic Cannon Light Cannon Launcher Rocket Launcher Special Weapon Enhanced Flamer Slashing Weapon Scythe Build | -11 -10 -10 -10 -9 -8 -7 ------- Run | Yrd Mat Min Exi Min Mat Fac Slots Evolved 6 | . . . . . 4 2 Power 1 | . . . . . . 1 Propulsion 1 | . . . . . 1 . Utility 3 | . . . . . 2 1 Weapon 1 | . . . . . 1 . Parts Attached 147 | 6 10 3 . 12 44 72 Power 21 | 1 1 . . 2 5 12 Engine 9 | 1 1 . . 2 2 3 Core 12 | . . . . . 3 9 Reactor . | . . . . . . . Propulsion 33 | 2 . . . 1 12 18 Treads 14 | 2 . . . 1 6 5 Leg 19 | . . . . . 6 13 Wheel . | . . . . . . . Hover . | . . . . . . . Flight . | . . . . . . . Utility 40 | 1 6 1 . 3 8 21 Device 17 | . 3 1 . . 2 11 Storage 10 | 1 1 . . 2 1 5 Processor 4 | . 1 . . . 2 1 Hackware 1 | . . . . . 1 . Protection 8 | . 1 . . 1 2 4 Artifact . | . . . . . . . Weapon 53 | 2 3 2 . 6 19 21 Energy Gun 11 | 1 . . . . 3 7 Energy Cannon 4 | . . . . . 1 3 Ballistic Gun 17 | 1 . . . 1 9 6 Ballistic Cannon 7 | . . . . 3 . 4 Launcher 11 | . 3 2 . 2 3 1 Special Weapon 2 | . . . . . 2 . Impact Weapon . | . . . . . . . Slashing Weapon 1 | . . . . . 1 . Piercing Weapon . | . . . . . . . Special Melee Weapon . | . . . . . . . Unidentified Prototypes . | . . . . . . . Parts Lost 40 | . 1 . . . 4 35 Power 8 | . . . . . . 8 Propulsion 10 | . . . . . 1 9 Utility 9 | . . . . . 2 7 Weapon 13 | . 1 . . . 1 11 Highest Loss Streak 11 | . 1 . . . 1 11 To Critical Strikes 3 | . . . . . . 3 Average Slot Usage (%) 92 | . 98 100 100 99 95 83 Engine 7 | . 14 14 14 13 3 2 Core 5 | . . . . . 5 11 Treads 18 | . 28 28 28 28 18 8 Leg 4 | . . . . . 5 7 Device 7 | . 9 14 14 4 . 8 Storage 10 | . 14 14 14 14 9 6 Processor 5 | . 1 . . . 15 6 Hackware 3 | . . . . . 2 6 Protection 3 | . 2 . . 9 7 3 Energy Gun 3 | . 1 . . . 3 5 Ballistic Gun 8 | . 14 1 . 3 14 7 Ballistic Cannon 3 | . . . . 13 2 3 Launcher 9 | . 12 26 28 10 4 . Peak Build Rating 52 | 6 8 9 9 12 39 52 Average Rating 25 | 4 7 8 9 10 31 41 On Entrance 11 | . 6 8 9 9 11 36 Naked Turns . | . . . . . . . Heaviest Build 127 | 10 18 21 21 31 42 127 Greatest Support 76 | 40 40 40 40 40 66 76 Greatest Overweight (x) 3 | 1 . . . . 1 3 Average Overweight (x) . | . . . . . . . Largest Inventory Capacity 25 | 8 10 10 10 20 15 25 Average Capacity 11 | 7 9 10 10 10 12 13 Most Carried 15 | 4 10 10 10 10 15 15 Average Carried 9 | 1 8 9 9 9 11 9 Final Capacity 15 | 8 10 10 10 10 15 15 Final Carried 15 | 4 10 10 10 10 15 10 Class Distribution -------------------- 53% | Mutant 38% | Skirmisher 5% | Scavenger-Skirmisher Dominant Class ---------------- Mutant | -10/Materials Mutant | -10/Mines Mutant | -10/Exiles Mutant | -9/Mines Skirmisher | -8/Materials Skirmisher | -7/Factory Resources | -11 -10 -10 -10 -9 -8 -7 ----------- Run | Yrd Mat Min Exi Min Mat Fac Matter Collected 3583 | 210 305 86 . 254 1558 1170 Remotely . | . . . . . . . Salvage Created 4369 | . 200 24 . 224 2342 1579 Parts 245 | . 21 4 . 12 136 72 Haulers Intercepted 9 | . 1 . . . 5 3 Recyclers Shooed 2 | . 1 . . . . 1 Parts Field Recycled . | . . . . . . . Retrieved Matter . | . . . . . . . Parts Self-Destructed . | . . . . . . . Prevented . | . . . . . . . Kills | -11 -10 -10 -10 -9 -8 -7 ------- Run | Yrd Mat Min Exi Min Mat Fac Combat Hostiles Destroyed 88 | . 8 3 . 8 41 28 Guns 51 | . 3 1 . 1 32 14 Cannons 24 | . . . . 6 6 12 AOE 12 | . 5 2 . 1 2 2 Classes Destroyed 15 | . 6 . . 3 2 4 Worker 7 | . . . . . 4 3 Builder 6 | . 1 . . . 3 2 Tunneler 1 | . . . . . . 1 Hauler 9 | . 1 . . . 5 3 Recycler 5 | . . . . . . 5 Operator 5 | . 1 . . . 3 1 Watcher 7 | . 1 . . . 3 3 Swarmer 24 | . 4 3 . 1 6 10 Grunt 36 | . 4 . . 3 24 5 Brawler 2 | . . . . . . 2 Duelist 2 | . . . . 1 . 1 Sentry 15 | . . . . 1 9 5 Hunter 3 | . . . . . 3 . Programmer 5 | . . . . . . 5 Assembled 2 | . . . . 2 . . Best Kill Streak 13 | . 3 2 . 3 7 13 Combat Bots Only 7 | . 3 2 . 3 7 4 Max Kills in Single Turn 4 | . 2 2 . 1 2 4 Gunslinging 1 | . . . . . 1 1 Exploded 2 | . 2 2 . 1 1 1 Melee . | . . . . . . . Uniques/NPCs Destroyed . | . . . . . . . Combat | -11 -10 -10 -10 -9 -8 -7 -------- Run | Yrd Mat Min Exi Min Mat Fac Hostile Shots Fired 777 | . 36 13 . 27 158 543 Missed 279 | . 7 3 . 11 47 211 Damage Taken 7236 | . 316 103 . 214 1613 4990 Core 1011 | . 52 . . . 244 715 Absorbed by Shields 53 | . . . . . . 53 Regen/Repaired (Parts) 21 | . 21 . . . . . Core Remaining (%) 78 | 100 . . . 79 55 . Volleys Fired 308 | . 59 10 . 23 135 81 Largest 3 | . 2 2 . 2 3 3 Hottest 176 | . 60 63 . 70 168 176 Shots Fired 680 | . 72 11 . 34 341 222 Gun 519 | . 59 9 . 9 275 167 Cannon 124 | . . . . 24 47 53 Launcher 35 | . 13 2 . 1 17 2 Special 2 | . . . . . 2 . Kinetic 464 | . 56 9 . 33 236 130 Thermal 82 | . 3 . . . 40 39 Explosive 21 | . 13 2 . 1 5 . Electromagnetic 113 | . . . . . 60 53 Robot Hit Streak 12 | . 8 1 . 4 12 12 Robot Miss Streak 10 | . 4 4 . 2 8 10 Penetration Max 1 | . . . . . 1 1 Secondary Targets 3 | . . . . . 2 1 Max Gunslinging Chain 1 | . . . . . 1 1 Shots Hit Robots 403 | . 37 3 . 22 199 142 Core Hits 243 | . 23 6 . 12 102 100 Critical Kills 2 | . . . . . 2 . Critical Parts Destroyed 1 | . . . . . 1 . Critical Strikes 8 | . . . . 1 6 1 Burn 1 | . . . . . 1 . Destroy 3 | . . . . . 3 . Blast 2 | . . . . 1 . 1 Corrupt 2 | . . . . . 2 . Melee Attacks . | . . . . . . . Impact . | . . . . . . . Slashing . | . . . . . . . Piercing . | . . . . . . . Sneak Attacks . | . . . . . . . Combat Hostiles . | . . . . . . . Follow-up Attacks . | . . . . . . . Damage Inflicted 9953 | . 775 122 . 430 4274 4352 Guns 5387 | . 245 20 . 107 2993 2022 Cannons 1572 | . . . . 240 547 785 Explosions 2994 | . 530 102 . 83 734 1545 Melee . | . . . . . . . Ramming . | . . . . . . . Kinetic 5027 | . 235 20 . 347 2642 1783 Thermal 1415 | . 10 . . . 600 805 Explosive 2123 | . 530 102 . 83 180 1228 Electromagnetic 1388 | . . . . . 852 536 Impact . | . . . . . . . Slashing . | . . . . . . . Piercing . | . . . . . . . Highest Corruption 33 | . . . . . 3 33 Average Corruption 11 | . . . . . 2 12 Corruption Purged . | . . . . . . . Corruption Blocked . | . . . . . . . Effects 128 | . . . . . 2 126 Message Errors 40 | . . . . . 1 39 Matter Fused 26 | . . . . . 1 25 Heat Flow Errors 16 | . . . . . . 16 Energy Discharges 12 | . . . . . . 12 Parts Fused 3 | . . . . . . 3 Data Loss (minor) 11 | . . . . . . 11 Data Loss (major) 5 | . . . . . . 5 Misfires 5 | . . . . . . 5 Alerts 3 | . . . . . . 3 Misdirections 3 | . . . . . . 3 Weapon Failures 4 | . . . . . . 4 Overload Shots . | . . . . . . . Overflow Damage 159 | . 9 . . . 15 135 Projectiles 26 | . . . . . 11 15 Explosions 133 | . 9 . . . 4 120 Melee . | . . . . . . . Knockbacks 4 | . . . . 3 . 1 Impact . | . . . . . . . Kinetic 4 | . . . . 3 . 1 Secondary . | . . . . . . . Self-Inflicted Damage 135 | . 5 16 . . 17 97 Shots 7 | . 1 1 . . 3 2 Rammed 1 | . . 1 . . . . Targets Rammed 1 | . . 1 . . . . Kicked . | . . . . . . . Crushed . | . . . . . . . Highest Temperature 497 | . 35 3 . 84 352 497 Average Temperature 107 | . 13 2 . 32 78 143 Received Heat Transfer 1260 | . 108 . . 87 675 390 Effects 17 | . . . . . 1 16 Shutdowns 5 | . . . . . . 5 Energy Bleed 4 | . . . . . . 4 Interference 3 | . . . . . . 3 Short Circuit 2 | . . . . . . 2 Damage (minor) 3 | . . . . . 1 2 Siege Activations . | . . . . . . . Robots Corrupted 1 | . . . . . 1 . Combat Hostiles 1 | . . . . . 1 . Parts Fried 3 | . . . . . 2 1 Impact Corruptions . | . . . . . . . Robots Melted . | . . . . . . . Combat Hostiles . | . . . . . . . Parts Melted 1 | . . . . . . 1 Heat Transferred 2354 | . 25 . . . 1159 1170 Parts Sabotaged . | . . . . . . . Parts Stolen . | . . . . . . . Parts Stripped . | . . . . . . . Power Chain Reactions 4 | . . . . . 4 . Alert | -11 -10 -10 -10 -9 -8 -7 ------- Run | Yrd Mat Min Exi Min Mat Fac Peak Influence 639 | . 142 66 . 143 639 530 Initial 211 | . . 6 . . 29 211 Average 205 | . 55 43 . 63 208 336 Maximum Alert Level 2 | . . . . . 2 2 Low Security (%) 56 | 100 100 100 . 100 56 18 Level 1 28 | . . . . . 33 51 Level 2 15 | . . . . . 10 30 Level 3 . | . . . . . . . Level 4 . | . . . . . . . Level 5 . | . . . . . . . High Security . | . . . . . . . Max Security . | . . . . . . . Squads Dispatched 24 | . 1 . . . 10 13 Investigation 2 | . . . . . 2 . Extermination 5 | . . . . . . 5 Reinforcement 10 | . 1 . . . 5 4 Assault 1 | . . . . . . 1 Garrison 6 | . . . . . 3 3 Intercept . | . . . . . . . Searches Triggered . | . . . . . . . Construction Impeded 1 | . . . . . 1 . Haulers Reinforced . | . . . . . . . Active Scanning Responses . | . . . . . . . Cargo Convoy Interrupts 1 | . . . . . . 1 Stealth | -11 -10 -10 -10 -9 -8 -7 --------- Run | Yrd Mat Min Exi Min Mat Fac Distress Signals 7 | . . . . 1 5 1 Communications Jammed 1 | . . . . . . 1 Distress Signals . | . . . . . . . Times Spotted 161 | . 17 5 . 17 55 67 Peak Tracking Total 10 | . 3 3 . 6 4 10 Tactical Retreats 14 | . 1 1 . . 4 8 Traps | -11 -10 -10 -10 -9 -8 -7 ------- Run | Yrd Mat Min Exi Min Mat Fac Traps Triggered 6 | . . . . . 2 4 Indirectly . | . . . . . . . Trap Hack Attempts . | . . . . . . . Triggered . | . . . . . . . Disarmed . | . . . . . . . Reprogrammed . | . . . . . . . Reused . | . . . . . . . Traps Extracted . | . . . . . . . Installed . | . . . . . . . Triggered . | . . . . . . . Machines | -11 -10 -10 -10 -9 -8 -7 ---------- Run | Yrd Mat Min Exi Min Mat Fac Machines Disabled 24 | . . . . 2 5 17 Max in Single Turn 6 | . . . . 1 1 6 Garrison Access 1 | . . . . . . 1 Machines Repaired . | . . . . . . . Machines Dismantled . | . . . . . . . Machines Sabotaged . | . . . . . . . Overloaded Fab Kills . | . . . . . . . Hacking | -11 -10 -10 -10 -9 -8 -7 --------- Run | Yrd Mat Min Exi Min Mat Fac Machines Accessed 29 | . 7 . 5 . 8 9 Terminals 16 | . 6 . . . 6 4 Fabricators 2 | . . . . . . 2 Repair Stations 1 | . 1 . . . . . Recycling Units . | . . . . . . . Scanalyzers 2 | . . . . . 1 1 Garrison Access 3 | . . . . . 1 2 Total Hacks 104 | . 21 . 50 . 20 13 Successful 81 | . 15 . 50 . 9 7 Failed 23 | . 6 . . . 11 6 Catastrophic 5 | . 1 . . . 2 2 Database Lockouts . | . . . . . . . Manual 19 | . 6 . 4 . 7 2 Terminals 38 | . 17 . . . 15 6 Fabricators 3 | . . . . . . 3 Repair Stations 4 | . 4 . . . . . Recycling Units . | . . . . . . . Scanalyzers 5 | . . . . . 3 2 Garrison Access 4 | . . . . . 2 2 Terminal Hacks 70 | . 12 . 50 . 6 2 Record 59 | . 8 . 49 . 1 1 Open DSF 1 | . . . . . . 1 Scanalyzer Index 1 | . 1 . . . . . Alert Level 3 | . 2 . . . 1 . Unreport Threat 2 | . . . . . 2 . Locate Traps 1 | . . . . . 1 . Hauler Manifests 1 | . . . . . 1 . Zone Layout 1 | . 1 . . . . . Derelict Proto ID Bank 1 | . . . 1 . . . Fabricator Hacks 2 | . . . . . . 2 Network Status 2 | . . . . . . 2 Repair Station Hacks 3 | . 3 . . . . . Scan Component 2 | . 2 . . . . . Repair 1 | . 1 . . . . . Recycling Unit Hacks . | . . . . . . . Scanalyzer 5 | . . . . . 3 2 Insert Component 2 | . . . . . 1 1 Analyze 3 | . . . . . 2 1 Garrison Access Hacks 1 | . . . . . . 1 Seal Access 1 | . . . . . . 1 Unauthorized Hacks . | . . . . . . . Terminals . | . . . . . . . Fabricators . | . . . . . . . Repair Stations . | . . . . . . . Recycling Units . | . . . . . . . Scanalyzers . | . . . . . . . Garrison Access . | . . . . . . . Data Cores Recovered 1 | . . . . . 1 . Used . | . . . . . . . Hacking Detections 19 | . 6 . . . 7 6 Full Trace Events 1 | . . . . . 1 . Feedback Events . | . . . . . . . Feedback Blocked . | . . . . . . . Robot Schematics Acquired . | . . . . . . . Robots Built . | . . . . . . . Authchips . | . . . . . . . Time . | . . . . . . . Total Robot Build Rating . | . . . . . . . Part Schematics Acquired 2 | . . . . . 1 1 Parts Built . | . . . . . . . Authchips . | . . . . . . . Time . | . . . . . . . Total Part Build Rating . | . . . . . . . Parts Repaired 1 | . 1 . . . . . Time 26 | . 26 . . . . . Parts Recycled . | . . . . . . . Recycled Matter . | . . . . . . . Retrieved Matter . | . . . . . . . Retrieved Components . | . . . . . . . Parts Scanalyzed 2 | . . . . . 1 1 Part Schematics Acquired 2 | . . . . . 1 1 Parts Damaged . | . . . . . . . Bothacking | -11 -10 -10 -10 -9 -8 -7 ------------ Run | Yrd Mat Min Exi Min Mat Fac Used RIF Installer . | . . . . . . . Robots Hacked . | . . . . . . . Non-combat . | . . . . . . . Combat . | . . . . . . . Robot Hacks Applied . | . . . . . . . Relay Couplers Released . | . . . . . . . Fabnet Peak Effective % . | . . . . . . . Robots Rewired . | . . . . . . . Allies Hacked . | . . . . . . . Hacks Repelled . | . . . . . . . Allies | -11 -10 -10 -10 -9 -8 -7 -------- Run | Yrd Mat Min Exi Min Mat Fac Total Allies 3 | . . 3 . . . . Largest Group 3 | . . 3 3 3 2 . Highest-Rated Group 40 | . . 40 40 40 24 . Highest-Rated Ally 16 | . . 16 16 16 16 . Total Orders 3 | . . . . 3 . . AID 3 | . . . . 3 . . Ally Attacks 55 | . . . . 36 19 . Total Damage 525 | . . . . 349 176 . Kills 11 | . . . . 9 2 . Allies Corrupted . | . . . . . . . Allies Melted . | . . . . . . . Intel | -11 -10 -10 -10 -9 -8 -7 ------- Run | Yrd Mat Min Exi Min Mat Fac Robot Analysis Total . | . . . . . . . Derelict Logs Recovered 2 | . . 1 . 1 . . Drone Launches . | . . . . . . . Drone Recoveries . | . . . . . . . Exploration | -11 -10 -10 -10 -9 -8 -7 ------------- Run | Yrd Mat Min Exi Min Mat Fac Turns Passed 11267 | 82 1401 1058 1174 1145 2144 4263 Spaces Moved 6040 | 48 761 606 728 663 1040 2194 Core 128 | 7 . . . . . 121 Treads 4722 | 41 761 606 728 663 797 1126 Legs 1190 | . . . . . 243 947 Wheels . | . . . . . . . Hover . | . . . . . . . Flight . | . . . . . . . Fastest Speed 50 | 50 160 160 160 160 120 50 Average Speed 160 | 147 160 160 160 160 152 164 Slowest Speed 360 | 160 160 160 160 160 240 360 Overloaded Moves . | . . . . . . . Propulsion Burnouts . | . . . . . . . Robots Hopped . | . . . . . . . Cave-ins Triggered . | . . . . . . . Exploration Rate (%) 73 | 4 98 95 94 95 85 42 Regions Visited 6 Branch Regions 3 Pre-discovered Areas 2 | . . 1 1 . . . Known Exits Taken 1 | . . . . . 1 . Unknown Exits Taken 5 | 1 1 1 1 1 . . Scrap Searched 4 | . . 2 . 2 . . Spaces Dug 13 | . 13 . . . . . Terrain Destroyed 234 | . 68 16 . 7 117 26 Melee . | . . . . . . . Projectile 8 | . . . . . 7 1 AOE 225 | . 68 16 . 7 109 25 Terrain Rammed . | . . . . . . . Walls Destroyed . | . . . . . . . Machines Disabled . | . . . . . . . Actions | -11 -10 -10 -10 -9 -8 -7 --------- Run | Yrd Mat Min Exi Min Mat Fac Total 7069 | 57 886 685 738 710 1327 2666 Wait 414 | . 32 61 8 2 52 259 Move 6034 | 47 760 605 727 662 1039 2194 Hop . | . . . . . . . Pick Up 87 | 4 12 2 1 5 27 36 Fast Attach 39 | 6 7 . . 1 10 15 Attach 40 | . 1 . . . 11 28 Detach 9 | . 3 . . . 2 4 Swap 68 | . 2 3 . 11 23 29 Drop 67 | . 10 3 1 6 28 19 Fire 308 | . 59 10 . 23 135 81 Melee . | . . . . . . . Ram 1 | . . . . . . 1 Kick . | . . . . . . . Crush 1 | . . 1 . . . . Escape Stasis . | . . . . . . . Rewire 1 | . . . 1 . . . Trap . | . . . . . . . Miscellaneous . | . . . . . . . Route ------- -11/Scrapyard -10/Materials (discovered 4 exits: [*Mat x3] / *Min) -10/Mines (discovered 3 exits: [*Mat x2] / *Exi) -10/Exiles (discovered 2 exits: [*Min x2]) -9/Mines (discovered 2 exits: *Mat x2) -8/Materials (discovered 4 exits: *Fac x3 / *Sto) -7/Factory (discovered 1 exit: [*Fac]) History --------- Turn | Location | Event 11 | -11/Scrapyard | Discovered new exit (range 15) 83 | -11/Scrapyard | Entered Materials 308 | -10/Materials | Build established: Mutant 355 | -10/Materials | Discovered new exit (range 3) 493 | -10/Materials | Discovered new exit (range 17) 730 | -10/Materials | Discovered new exit (range 10) 771 | -10/Materials | Discovered new exit (range 10) 1426 | -10/Materials | Repaired Grenade Launcher 1484 | -10/Materials | Entered Mines 1542 | -10/Mines | Met a Derelict bent on vengeance 1551 | -10/Mines | Received a Rocket Launcher from a helpful Derelict 1624 | -10/Mines | Found a hidden stash of uninstalled traps 1632 | -10/Mines | Discovered new exit (range 8) 1669 | -10/Mines | A weapon hastily lodged in a ceiling crevice suddenly fell to the ground 1779 | -10/Mines | Learned location of Storage (-8) 1939 | -10/Mines | Discovered new exit (range 8) 1989 | -10/Mines | Assisted by bots powering up and referring to "LRC-V3" 2275 | -10/Mines | Deemed a non-threat by the Exiles lab entrance 2275 | -10/Mines | Discovered new exit (range 5) 2542 | -10/Mines | Entered Exiles 2542 | -10/Exiles | Accompanied by 3 allies 2575 | -10/Exiles | Discovered new exit (range 15) 2619 | -10/Exiles | Met 8R-AWN 2646 | -10/Exiles | Met EX-HEX 2795 | -10/Exiles | Met EX-BIN 2840 | -10/Exiles | Aligned with FarCom system 2841 | -10/Exiles | Given EX-Vault access code 2933 | -10/Exiles | Opened EX-Vault 2948 | -10/Exiles | Found 0b10 Alert Chip 3022 | -10/Exiles | Warned to stay clear of 0b10 Research branches 3067 | -10/Exiles | Met EX-DEC 3092 | -10/Exiles | Learned location of Zion (-7) 3142 | -10/Exiles | Discovered new exit (range 14) 3330 | -10/Exiles | Visited The Gauntlet 3716 | -10/Exiles | Left Exiles lab with 0b10 Alert Chip 3716 | -10/Exiles | Entered Mines 3716 | -9/Mines | Accompanied by 3 allies 3802 | -9/Mines | Assembled infested the area 3837 | -9/Mines | Learned location of 2 exits from Materials 4072 | -9/Mines | Joined a pair of Derelicts in attacking an 0b10 outpost 4367 | -9/Mines | Discovered new exit (range 9) 4544 | -9/Mines | Discovered new exit (range 12) 4861 | -9/Mines | Entered Materials 4861 | -8/Materials | Accompanied by 2 allies 4861 | -8/Materials | Evolved 4 slots: Propulsion x1, Utility x2, Weapon x1 4862 | -8/Materials | Identified exit to Storage 4863 | -8/Materials | Identified exit to Factory 5164 | -8/Materials | Build established: Skirmisher 5809 | -8/Materials | Build established: Scavenger-Skirmisher 5851 | -8/Materials | Discovered exit to Factory (range 15) 6171 | -8/Materials | Build established: Skirmisher 6468 | -8/Materials | Garrison activated, responded to threat 6713 | -8/Materials | Destroyed 7 combat bots 7005 | -8/Materials | Entered Factory 7005 | -7/Factory | Evolved 2 slots: Power x1, Utility x1 8060 | -7/Factory | Discovered new exit (range 12) 8898 | -7/Factory | Cargo convoy interrupted 8912 | -7/Factory | System corruption reached 10% 8957 | -7/Factory | Lost 11 parts (3p2n3u3w) 8978 | -7/Factory | Core integrity fell below 50% 9228 | -7/Factory | Build established: Mutant 9777 | -7/Factory | Build established: Skirmisher 10997 | -7/Factory | Build established: Mutant 11005 | -7/Factory | First assault squad dispatched 11141 | -7/Factory | Lost 4 parts (1p1u2w) 11183 | -7/Factory | Core integrity fell below 20% 11183 | -7/Factory | System corruption reached 30% 11213 | -7/Factory | Lost 3 parts (1p2u) 11268 | -7/Factory | Destroyed by X-67 Chaingunner with Heavy Machine Gun Last Messages --------------- Knocked back. K-01 Serf cleans the Power Conduit. System corrupted: FCS attempts to trigger Shock Rifle. RBY/X2SEP>W3INHFV URHA>3X Shock Rifle destroyed. Flak Gun destroyed. VSS Leg destroyed. X-67 Chaingunner destroyed. Power Conduit explodes. X-67 Chaingunner destroyed. B-48 Gladiator destroyed. Power Conduit explodes. G-50 Soldier destroyed. Power Conduit explodes. System corrupted: Matter fused (-8). Adv. Treads destroyed. M-28 Smith repairs Angular Momentum Engine. Broken Mic. Nuclear Core destroyed. Terminal disabled. Map ----- +----------------------------------------------------+ | | | | | | | | | | | | | | | | | | | | | | | | | | | | | | | | | | | | | | | | | ?????????????????????###########?????????????????? | | ?????????????????????# ] #?????????????????? | | ?????????????????????# "T" #?????????????????? | | ?????###???????????### "" #?????????????????? | | ????#""G""??????#### ; b #?????????????????? | | ??###"" ""#######;;;;;;;;@/#####?????????????????? | | ??# x #??????????????????? | | ??# mx%[ #??????????????????? | | ??+ % #??????????????????? | | ??? """"""""" % ! ###????????????????? | | ??# % !!! #????????????????? | | ??? """"""""" #????????????????? | | ?# #????????????????? | | ??? """"""""" #????????????????? | | ?+ #????????????????? | | ??? """"""""" #????????????????? | | ?# ###### ?????????? | | ??? """"""""" ?????????? | | ?# ????????? | | ?# """"""""" """"" ????????? | | ?# ???????? | | # ????????? | | #T #"""T"""########## ####?????????????? | | ## ?############?????# #????????????????? | | ????????# ####### #????????????????? | | ????????# + #????????????????? | | ????????# ########## #????????????????? | | ????? ??# #????????# #????????????????? | | ?? T" + ! #???????##/##+####?????????????? | | ? # #???????# #?????????????? | +----------------------------------------------------+ Best States ------------- Heat Dissipation 61 Energy Generation 25 Energy Capacity 335 Matter Stores 300 Matter Capacity 300 Sight Range 18 Terrain Scan Range 16 Terrain Scan Density 210 Jamming Range 12 Additional Mass Support 9 Armor Coverage 600 Weapon Shielding 33 Evasion (%) 55 Targeting Accuracy 8 Recoil Reduction 3 Offensive Hacking 10 Item Schematics ----------------- Hacking Suite | -8/Materials | Scanalyzed Component Analysis Suite | -7/Factory | Scanalyzed Robot Schematics ------------------ None Fabricated ------------ Nothing Alien Tech Used ----------------- None Achievements -------------- Backstab I Survived The Infestation Serviceable Loadout Significant Disruption Slippery One Tourist Challenges ------------ None Game ------ Seed CompactMyomerBoregun Manual? 0 Play Time 02:12:07 Cumulative 6.3 hours Start 2025.01.03 @ 10:00:37 End 2025.01.03 @ 13:33:46 Sessions 5 Manual Loads 0 Difficulty Rogue Special Mode None Game No. 4 Rogue 4 Adventurer 0 Explorer 0 Win Type - Total 0 Types 0/0/0/0/0/0/0/0/0 Lore% 8 Gallery% 9 Achievement% 10 Wizard Run 0 Options --------- Layout 1 ASCII 0 Keyboard 0 Movement Numpad Keybinds 0 Fullscreen 1 Font 24/Smallcaps Map View 50x35 Zoom Use 0% Tactical HUD 0 Map Filters NONE Filters NONE Steam 1 RUN: 8b5891a5-51b3-4e55-bcb7-c6fd2fb24f4e